fUSD/lending_fUSD_20240513
["ID","MTS","AMOUNT","RATE_DAILY","PERIOD"]
[326949336,1715639441209,-1796.41,0.00012999,2]
[326949337,1715639441219,-1796.41,0.00012999,2]
[326949338,1715639441228,-1796.41,0.00012999,2]
[326949339,1715639441238,-1796.41,0.00012999,2]
[326949340,1715639441247,-1796.41,0.00012999,2]
[326949341,1715639441257,-1796.41,0.00012999,2]
[326949342,1715639441266,-1796.41,0.00012999,2]
[326949343,1715639441277,-1124.31302439,0.00012999,2]
[326949344,1715639441291,-672.09697561,0.00012999,2]
[326949345,1715639441300,-1796.41,0.00012999,2]
[326949346,1715639441310,-1796.41,0.00012999,2]
[326949347,1715639441319,-1796.41,0.00012999,2]
[326949348,1715639441331,-1796.41,0.00012999,2]
[326949349,1715639441341,-1796.41,0.00012999,2]
[326949350,1715639441350,-1796.41,0.00012999,2]
[326949351,1715639441361,-1796.41,0.00012999,2]
[326949352,1715639441372,-1796.41,0.00012999,2]
[326949353,1715639441382,-1796.41,0.00012999,2]
[326949354,1715639441392,-1796.41,0.00012999,2]
[326949355,1715639441402,-1796.41,0.00012999,2]
[326949356,1715639441411,-1796.41,0.00012999,2]
[326949357,1715639441422,-1796.53420253,0.00012999,2]
[326949358,1715639441431,-151.0,0.00012999,2]
[326949359,1715639441440,-151.0,0.00012999,2]
[326949360,1715639441450,-950.745794,0.00012999,2]
[326949361,1715639441459,-500.0,0.00012999,2]
[326949362,1715639441469,-288.85,0.00012999,2]
[326949363,1715639441478,-282.01202456,0.00012999,2]
[326949364,1715639441487,-151.0,0.00012999,2]
[326949365,1715639441497,-296.550446,0.00012999,2]
[326949366,1715639441507,-500.0,0.00012999,2]
[326949367,1715639441516,-523.6,0.00012999,2]
[326949368,1715639441525,-500.0,0.00012999,2]
[326949369,1715639441535,-264.72,0.00012999,2]
[326949370,1715639441544,-151.0,0.00012999,2]
[326949371,1715639441554,-245.52,0.00012999,2]
[326949372,1715639441563,-791.78,0.00012999,2]
[326949373,1715639441726,-791.78,0.00012999,2]
[326949374,1715639441739,-500.0,0.00012999,2]
[326949375,1715639441749,-791.78,0.00012999,2]
[326949376,1715639441759,-500.0,0.00012999,2]
[326949377,1715639441768,-791.78,0.00012999,2]
[326949378,1715639441779,-791.78,0.00012999,2]
[326949379,1715639441791,-791.78,0.00012999,2]
[326949380,1715639441800,-791.78,0.00012999,2]
[326949381,1715639441811,-791.78,0.00012999,2]
[326949382,1715639441820,-791.78,0.00012999,2]
[326949383,1715639441830,-791.78,0.00012999,2]
[326949384,1715639441842,-791.78,0.00012999,2]
[326949385,1715639441854,-791.78,0.00012999,2]
[326949386,1715639441864,-791.78,0.00012999,2]
[326949387,1715639441873,-791.78,0.00012999,2]
[326949388,1715639441882,-791.78,0.00012999,2]
[326949389,1715639441891,-791.78,0.00012999,2]
[326949390,1715639441901,-791.78,0.00012999,2]
[326949391,1715639441910,-791.78,0.00012999,2]
[326949392,1715639441919,-791.78,0.00012999,2]
[326949393,1715639441928,-791.78,0.00012999,2]
[326949394,1715639441937,-791.79,0.00012999,2]
[326949395,1715639441947,-500.0,0.00012999,2]
[326949396,1715639441956,-500.0,0.00012999,2]
[326949397,1715639441965,-500.0,0.00012999,2]
[326949398,1715639441974,-500.0,0.00012999,2]
[326949399,1715639441983,-634.1,0.00012999,2]
[326949400,1715639441992,-267.0,0.00012999,2]
[326949401,1715639442001,-594.55,0.00012999,2]
[326949402,1715639442011,-594.55,0.00012999,2]
[326949403,1715639442020,-594.55,0.00012999,2]
[326949404,1715639442029,-594.55,0.00012999,2]
[326949405,1715639442039,-594.55,0.00012999,2]
[326949406,1715639442048,-594.55,0.00012999,2]
[326949407,1715639442057,-594.55,0.00012999,2]
[326949408,1715639442067,-500.0,0.00012999,2]
[326949409,1715639442076,-594.55,0.00012999,2]
[326949410,1715639442085,-594.55,0.00012999,2]
[326949411,1715639442094,-300.64,0.00012999,2]
[326949412,1715639442104,-594.55,0.00012999,2]
[326949413,1715639442113,-594.55,0.00012999,2]
[326949414,1715639442122,-594.55,0.00012999,2]
[326949415,1715639442131,-500.0,0.00012999,2]
[326949416,1715639442140,-500.0,0.00012999,2]
[326949417,1715639442149,-500.0,0.00012999,2]
[326949418,1715639442159,-594.55,0.00012999,2]
[326949419,1715639442170,-500.0,0.00012999,2]
[326949420,1715639442179,-594.55,0.00012999,2]
[326949421,1715639442191,-500.0,0.00012999,2]
[326949422,1715639442200,-594.55,0.00012999,2]
[326949423,1715639442210,-500.0,0.00012999,2]
[326949424,1715639442220,-594.55,0.00012999,2]
[326949425,1715639442229,-500.0,0.00012999,2]
[326949426,1715639442239,-594.55,0.00012999,2]
[326949427,1715639442248,-500.0,0.00012999,2]
[326949428,1715639442258,-594.55,0.00012999,2]
[326949429,1715639442268,-274.61168993,0.00012999,2]
[326949430,1715639442283,-594.55,0.00012999,2]
[326949431,1715639442292,-594.55,0.00012999,2]
[326949432,1715639442302,-594.56,0.00012999,2]
[326949433,1715639442311,-500.0,0.00012999,2]
[326949434,1715639442323,-404.73,0.00012999,2]
[326949435,1715639442342,-151.0,0.00012999,2]
[326949436,1715639442352,-500.0,0.00012999,2]
[326949438,1715639442361,-500.0,0.00012999,2]
[326949439,1715639442371,-500.0,0.00012999,2]
[326949440,1715639442380,-500.0,0.00012999,2]
[326949441,1715639442390,-500.0,0.00012999,2]
[326949442,1715639442400,-500.0,0.00012999,2]
[326949443,1715639442409,-500.0,0.00012999,2]
[326949444,1715639442420,-219.36787833,0.00012999,2]
[326949445,1715639442429,-500.0,0.00012999,2]
[326949446,1715639442439,-500.0,0.00012999,2]
[326949447,1715639442448,-500.0,0.00012999,2]
[326949448,1715639442458,-500.0,0.00012999,2]
[326949449,1715639442468,-500.0,0.00012999,2]
[326949450,1715639442477,-500.0,0.00012999,2]
[326949451,1715639442486,-500.0,0.00012999,2]
[326949452,1715639442496,-500.0,0.00012999,2]
[326949454,1715639442505,-500.0,0.00012999,2]
[326949455,1715639442515,-500.0,0.00012999,2]
[326949456,1715639442525,-500.0,0.00012999,2]
[326949457,1715639442534,-500.0,0.00012999,2]
[326949458,1715639442544,-500.0,0.00012999,2]
[326949459,1715639442554,-500.0,0.00012999,2]
[326949460,1715639442563,-500.0,0.00012999,2]
[326949461,1715639442572,-500.0,0.00012999,2]
[326949462,1715639442582,-500.0,0.00012999,2]
[326949463,1715639442591,-500.0,0.00012999,2]
[326949464,1715639442601,-500.0,0.00012999,2]
[326949465,1715639442610,-500.0,0.00012999,2]
[326949466,1715639442619,-500.0,0.00012999,2]
[326949467,1715639442629,-500.0,0.00012999,2]
[326949468,1715639442638,-500.0,0.00012999,2]
[326949470,1715639442648,-500.0,0.00012999,2]
[326949471,1715639442658,-587.53330722,0.00012999,2]
[326949473,1715639442668,-500.0,0.00012999,2]
[326949475,1715639442679,-500.0,0.00012999,2]
[326949476,1715639442688,-500.0,0.00012999,2]
[326949478,1715639442698,-381.58,0.00012999,2]
[326949480,1715639442708,-6675.89,0.00012999,2]
[326949481,1715639442717,-6675.89,0.00012999,2]
[326949483,1715639442728,-6675.89,0.00012999,2]
[326949485,1715639442738,-6675.89,0.00012999,2]
[326949486,1715639442747,-6675.89,0.00012999,2]
[326949488,1715639442756,-6675.89,0.00012999,2]
[326949489,1715639442766,-6675.89,0.00012999,2]
[326949491,1715639442775,-6675.89,0.00012999,2]
[326949493,1715639442785,-6675.89,0.00012999,2]
[326949494,1715639442794,-4530.44983494,0.00012999,2]
[326949526,1715639443601,-569.61,0.00012991,2]
[326949527,1715639443611,-500.0,0.00012994,2]
[326949528,1715639443621,-117.68489231,0.00012995,2]
[326949529,1715639443632,-387.31316022,0.00012995,2]
[326949530,1715639443641,-500.0,0.00012997,2]
[326949531,1715639443651,-569.61,0.00012998,2]
[326949532,1715639443660,-569.61,0.00012998,2]
[326949533,1715639443670,-303.90588098,0.00012999,2]
[326949534,1715639443681,-1841.53428408,0.00012999,2]
[326949535,1715639443690,-1111.53534071,0.00012999,2]
[326949536,1715639443717,-202.56105356,0.000129,2]
[326949537,1715639443727,-400.02328744,0.00012999,2]
[326949538,1715639443738,-387.287,0.00012999,2]
[326949539,1715639443767,-4777.04437185,0.00012999,2]
[326949540,1715639443776,-151.0,0.00012999,2]
[326949541,1715639443786,-6675.89,0.00012999,2]
[326949542,1715639443795,-6675.89,0.00012999,2]
[326949543,1715639443805,-6675.89,0.00012999,2]
[326949544,1715639443814,-6675.89,0.00012999,2]
[326949545,1715639443823,-6675.89,0.00012999,2]
[326949546,1715639443833,-6675.89,0.00012999,2]
[326949547,1715639443842,-6675.89,0.00012999,2]
[326949548,1715639443851,-1612.88772121,0.00012999,2]
[326949549,1715639444012,-339.21288241,0.00012994,2]
[326949550,1715639444026,-160.78711759,0.00012994,2]
[326949551,1715639444036,-2329.05888245,0.00012999,2]
[326949552,1715639444049,-2733.94339634,0.00012999,2]
[326949553,1715639444058,-6675.89,0.00012999,2]
[326949554,1715639444067,-4100.71282684,0.00012999,2]
[326949555,1715639444078,-2575.39717316,0.00012999,2]
[326949556,1715639444087,-151.0,0.00012999,2]
[326949557,1715639444096,-151.0,0.00012999,2]
[326949558,1715639444106,-175.1,0.00012999,2]
[326949559,1715639444115,-151.0,0.00012999,2]
[326949560,1715639444125,-480.55194702,0.00012999,2]
[326949561,1715639444136,-19.44805298,0.00012999,2]
[326949562,1715639444145,-500.0,0.00012999,2]
[326949563,1715639444154,-500.0,0.00012999,2]
[326949564,1715639444163,-280.55194702,0.00012999,2]
[326949565,1715639444176,-219.44805298,0.00012999,2]
[326949566,1715639444185,-288.66,0.00012999,2]
[326949567,1715639444194,-151.0,0.00012999,2]
[326949568,1715639444203,-436.91622133,0.00012999,2]
[326949569,1715639444212,-151.0,0.00012999,2]
[326949570,1715639444222,-151.0,0.00012999,2]
[326949571,1715639444231,-151.0,0.00012999,2]
[326949572,1715639444240,-500.0,0.00012999,2]
[326949573,1715639444285,-500.0,0.00012999,2]
[326949574,1715639444295,-500.0,0.00012999,2]
[326949575,1715639444305,-500.0,0.00012999,2]
[326949576,1715639444315,-500.0,0.00012999,2]
[326949577,1715639444324,-187.56,0.00012999,2]
[326949578,1715639444334,-520.20421922,0.00012999,2]
[326949579,1715639444343,-500.0,0.00012999,2]
[326949580,1715639444352,-500.0,0.00012999,2]
[326949581,1715639444364,-500.0,0.00012999,2]
[326949582,1715639444375,-500.0,0.00012999,2]
[326949583,1715639444384,-500.0,0.00012999,2]
[326949584,1715639444393,-500.0,0.00012999,2]
[326949585,1715639444402,-500.0,0.00012999,2]
[326949586,1715639444411,-500.0,0.00012999,2]
[326949587,1715639444421,-500.0,0.00012999,2]
[326949588,1715639444430,-500.0,0.00012999,2]
[326949589,1715639444439,-500.0,0.00012999,2]
[326949590,1715639444448,-500.0,0.00012999,2]
[326949591,1715639444457,-243.21150647,0.00012999,2]
[326949592,1715639444475,-256.78849353,0.00012999,2]
[326949593,1715639444485,-500.0,0.00012999,2]
[326949594,1715639444494,-500.0,0.00012999,2]
[326949595,1715639444503,-500.0,0.00012999,2]
[326949596,1715639444512,-500.0,0.00012999,2]
[326949597,1715639444522,-500.0,0.00012999,2]
[326949598,1715639444531,-500.0,0.00012999,2]
[326949599,1715639444540,-500.0,0.00012999,2]
[326949600,1715639444550,-500.0,0.00012999,2]
[326949601,1715639444560,-604.01,0.00012999,2]
[326949602,1715639444569,-500.0,0.00012999,2]
[326949603,1715639444578,-500.0,0.00012999,2]
[326949604,1715639444588,-500.0,0.00012999,2]
[326949605,1715639444597,-500.0,0.00012999,2]
[326949606,1715639444606,-500.0,0.00012999,2]
[326949607,1715639444616,-500.0,0.00012999,2]
[326949608,1715639444625,-500.0,0.00012999,2]
[326949609,1715639444634,-500.0,0.00012999,2]
[326949610,1715639444643,-500.0,0.00012999,2]
[326949611,1715639444651,-500.0,0.00012999,2]
[326949612,1715639444661,-500.0,0.00012999,2]
[326949613,1715639444671,-500.0,0.00012999,2]
[326949614,1715639444680,-171.15878795,0.00012999,2]
[326949615,1715639444690,-500.0,0.00012999,2]
[326949616,1715639444699,-500.0,0.00012999,2]
[326949617,1715639444709,-610.07,0.00012999,2]
[326949618,1715639444718,-500.0,0.00012999,2]
[326949619,1715639444727,-219.28,0.00012999,2]
[326949620,1715639444737,-500.0,0.00012999,2]
[326949621,1715639444746,-500.0,0.00012999,2]
[326949622,1715639444756,-500.0,0.00012999,2]
[326949623,1715639444765,-500.0,0.00012999,2]
[326949624,1715639444774,-500.0,0.00012999,2]
[326949625,1715639444784,-500.0,0.00012999,2]
[326949626,1715639444795,-500.0,0.00012999,2]
[326949627,1715639444804,-500.0,0.00012999,2]
[326949628,1715639444814,-500.0,0.00012999,2]
[326949629,1715639444824,-500.0,0.00012999,2]
[326949630,1715639444834,-500.0,0.00012999,2]
[326949631,1715639444843,-151.0,0.00012999,2]
[326949632,1715639444854,-151.0,0.00012999,2]
[326949633,1715639444863,-269.8,0.00012999,2]
[326949634,1715639444873,-151.0,0.00012999,2]
[326949635,1715639444882,-151.0,0.00012999,2]
[326949636,1715639444892,-151.0,0.00012999,2]
[326949637,1715639444902,-500.0,0.00012999,2]
[326949638,1715639444912,-500.0,0.00012999,2]
[326949639,1715639444922,-500.0,0.00012999,2]
[326949640,1715639444931,-500.0,0.00012999,2]
[326949641,1715639444940,-500.0,0.00012999,2]
[326949642,1715639444952,-500.0,0.00012999,2]
[326949643,1715639444963,-500.0,0.00012999,2]
[326949644,1715639444972,-500.0,0.00012999,2]
[326949645,1715639444982,-631.03,0.00012999,2]
[326949646,1715639444991,-500.0,0.00012999,2]
[326949647,1715639444999,-500.0,0.00012999,2]
[326949648,1715639445008,-500.0,0.00012999,2]
[326949649,1715639445018,-500.0,0.00012999,2]
[326949650,1715639445030,-500.0,0.00012999,2]
[326949651,1715639445040,-191.13895149,0.00012999,2]
[326949652,1715639445050,-500.0,0.00012999,2]
[326949653,1715639445059,-500.0,0.00012999,2]
[326949654,1715639445068,-500.0,0.00012999,2]
[326949655,1715639445078,-500.0,0.00012999,2]
[326949656,1715639445087,-500.0,0.00012999,2]
[326949657,1715639445097,-500.0,0.00012999,2]
[326949658,1715639445107,-500.0,0.00012999,2]
[326949659,1715639445116,-500.0,0.00012999,2]
[326949660,1715639445126,-547.18,0.00012999,2]
[326949661,1715639445135,-500.0,0.00012999,2]
[326949662,1715639445144,-500.0,0.00012999,2]
[326949663,1715639445153,-500.0,0.00012999,2]
[326949664,1715639445162,-500.0,0.00012999,2]
[326949665,1715639445172,-500.0,0.00012999,2]
[326949666,1715639445181,-569.61,0.00012999,2]
[326949667,1715639445190,-500.0,0.00012999,2]
[326949668,1715639445200,-500.0,0.00012999,2]
[326949669,1715639445209,-569.61,0.00012999,2]
[326949670,1715639445218,-500.0,0.00012999,2]
[326949671,1715639445227,-569.61,0.00012999,2]
[326949672,1715639445237,-500.0,0.00012999,2]
[326949673,1715639445248,-569.61,0.00012999,2]
[326949674,1715639445259,-204.3,0.00012999,2]
[326949675,1715639445268,-427.835607,0.00012999,2]
[326949676,1715639445284,-569.61,0.00012999,2]
[326949677,1715639445294,-569.61,0.00012999,2]
[326949678,1715639445303,-569.61,0.00012999,2]
[326949679,1715639445313,-569.61,0.00012999,2]
[326949680,1715639445324,-569.61,0.00012999,2]
[326949681,1715639445334,-569.61,0.00012999,2]
[326949682,1715639445344,-569.61,0.00012999,2]
[326949683,1715639445354,-569.61,0.00012999,2]
[326949684,1715639445365,-569.61,0.00012999,2]
[326949685,1715639445376,-509.0,0.00012999,2]
[326949686,1715639445386,-569925.18944661,0.00013,2]
[326949687,1715639445395,-51154.21336726,0.00013,2]
[326949688,1715639445518,-500.0,0.0001299,2]
[326949689,1715639445528,-569.61,0.00012999,2]
[326949690,1715639445538,-569.61,0.00012999,2]
[326949691,1715639445547,-569.61,0.00012999,2]
[326949693,1715639445556,-569.61,0.00012999,2]
[326949694,1715639445565,-427.835607,0.00012999,2]
[326949695,1715639445575,-569.61,0.00012999,2]
[326949696,1715639445584,-1831.68494596,0.00013,2]
[326949697,1715639445595,-1558.35,0.00013,2]
[326949698,1715639445606,-1300.50255762,0.00013,2]
[326949699,1715639445617,-301.60400004,0.00013,2]
[326949700,1715639445628,-25142.89807053,0.00013,2]
[326949701,1715639445640,-5339.25,0.00013,2]
[326949702,1715639445677,-202.56105355,0.000129,2]
[326949703,1715639445686,-250.43894645,0.00012999,2]
[326949704,1715639445698,-319.17105355,0.00012999,2]
[326949706,1715639445707,-3135.20972993,0.00013,2]
[326949707,1715639445718,-34067.87781585,0.00013,2]
[326949708,1715639445728,-362.87577431,0.00013,2]
[326949709,1715639445740,-630.87041203,0.00013,2]
[326949710,1715639445751,-1968.29030232,0.00013,2]
[326949711,1715639445762,-610.90529394,0.00013,2]
[326949712,1715639445773,-251530.09009653,0.00013,2]
[326949713,1715639445784,-3219.39896456,0.00013,2]
[326949727,1715639445965,-500.0,0.00012994,2]
[326949728,1715639445975,-103.92688297,0.00012994,2]
[326949731,1715639446048,-396.07311703,0.00012994,2]
[326949733,1715639446057,-155.0,0.00012997,2]
[326949734,1715639446067,-1473.37288416,0.00012997,2]
[326949737,1715639446078,-317.86,0.00012998,2]
[326949739,1715639446088,-569.61,0.00012999,2]
[326949741,1715639446098,-569.6386373,0.00012999,2]
[326949742,1715639446107,-11822.01791079,0.00013,2]
[326949752,1715639446195,-339.85302779,0.00013,2]
[326949762,1715639458574,289.04362536,0.00011346,2]
[326949779,1715639693300,190.12215852,0.00011346,2]
[326949780,1715639725280,332784.07397784,0.00011346,2]
[326949781,1715639731054,163.21884329,0.00011346,2]
[326949782,1715639775309,409.45867235,0.00011346,2]
[326949783,1715639789238,409.45867235,0.00011346,2]
[326949784,1715639792188,7510.54701635,0.00011346,2]
[326949785,1715639810152,7506.20849129,0.00011346,2]
[326949786,1715639811255,409.45867235,0.00011346,2]
[326949787,1715639822680,1831.26882031,0.00012,30]
[326949788,1715639827643,200.0,0.00019005,30]
[326949789,1715639827677,200.0,0.00019005,30]
[326949790,1715639827724,200.0,0.00019005,30]
[326949791,1715639827786,200.0,0.00019005,30]
[326949792,1715639827839,200.0,0.00019005,30]
[326949793,1715639829240,156.00125358,0.00011346,2]
[326949796,1715639971686,257.18839937,0.0001891,30]
[326949807,1715640556505,250.0,0.00011292,2]
[326949821,1715640631852,-155.0,0.00011502,2]
[326949822,1715640631861,-207.25954279,0.00011503,2]
[326949823,1715640631870,-87.58080819,0.00011503,2]
[326949824,1715640631881,-175.31405539,0.00011503,2]
[326949825,1715640631890,-187.92847001,0.00011504,2]
[326949826,1715640631901,-1836.77399846,0.00011504,2]
[326949827,1715640631913,-1001.53824776,0.00011504,2]
[326949828,1715640631922,-3068.50633012,0.00011504,2]
[326949829,1715640631933,-1205.89296349,0.00011504,2]
[326949830,1715640631943,-805.25563851,0.00011505,2]
[326949831,1715640631954,-342.93404351,0.00011505,2]
[326949835,1715640632208,-1178.86554486,0.00011505,2]
[326949836,1715640632217,-1247.47877474,0.00011505,2]
[326949838,1715640632227,-938.83781782,0.00011506,2]
[326949840,1715640632236,-2002.23562285,0.00011508,2]
[326949843,1715640632247,-1652.31001679,0.00011508,2]
[326949845,1715640632259,-770.89962139,0.00011508,2]
[326949847,1715640632268,-250.0,0.00011519,2]
[326949849,1715640632277,-538.51236108,0.00011613,2]
[326949851,1715640632286,-175.48,0.00011614,2]
[326949853,1715640632295,-779.82402105,0.00011658,2]
[326949855,1715640632306,-2248.99689501,0.00011658,2]
[326949857,1715640632318,-1364.64908394,0.00011658,2]
[326949859,1715640632327,-499.99,0.00011658,2]
[326949861,1715640632336,-150.99,0.00011658,2]
[326949863,1715640632345,-1000.0,0.00011662,2]
[326949865,1715640632354,-269.33,0.0001178,2]
[326949867,1715640632363,-156.13,0.00011864,2]
[326949869,1715640632372,-57.93468532,0.00011924,2]
[326949872,1715640632389,-96.33531468,0.00011924,2]
[326949874,1715640632398,-951.09145515,0.0001208,2]
[326949876,1715640632409,-627.0,0.0001208,2]
[326949878,1715640632420,-289.3455407,0.0001208,2]
[326949883,1715640632457,-11782.98336,0.0001208,2]
[326949892,1715640637817,-760.0,0.0001208,2]
[326949905,1715640637964,-548.09566506,0.0001208,2]
[326949911,1715640638401,-948.70512469,0.0001208,2]
[326950011,1715640640450,-36825.74111794,0.0001208,2]
[326950012,1715640640461,-235.84,0.000121,2]
[326950013,1715640640471,-163.27,0.000121,2]
[326950014,1715640640481,-535.35563645,0.00012237,2]
[326950015,1715640640491,-150.0,0.000123,2]
[326950016,1715640640500,-538.02,0.000123,2]
[326950017,1715640640510,-420.36,0.000123,2]
[326950018,1715640640519,-150.0,0.000123,2]
[326950019,1715640640529,-983.06281251,0.00012347,7]
[326950020,1715640640538,-847.0471,0.00012349,2]
[326950021,1715640640548,-189.756362,0.00012394,2]
[326950022,1715640640558,-2839.313475,0.00012394,2]
[326950023,1715640640568,-288.044754,0.00012394,2]
[326950024,1715640640578,-241.364455,0.00012394,2]
[326950025,1715640640587,-4161.020378,0.00012394,2]
[326950026,1715640640597,-165.520287,0.00012394,2]
[326950027,1715640640606,-910.686037,0.00012394,2]
[326950028,1715640640617,-482.72891,0.00012394,2]
[326950029,1715640640630,-6567.4077,0.00012449,2]
[326950030,1715640640640,-168.27,0.00012535,2]
[326950031,1715640640650,-2839.313475,0.00012549,2]
[326950032,1715640640659,-288.044754,0.00012549,2]
[326950033,1715640640671,-241.364455,0.00012549,2]
[326950034,1715640640680,-910.686037,0.00012549,2]
[326950036,1715640640690,-4161.020378,0.00012549,2]
[326950037,1715640640700,-482.72891,0.00012549,2]
[326950038,1715640640709,-500.0,0.00012602,2]
[326950039,1715640640720,-3716.0939,0.00012648,2]
[326950040,1715640640731,-1238.8166,0.00012648,2]
[326950041,1715640640740,-150.0,0.00012662,2]
[326950042,1715640640749,-150.0,0.00012693,2]
[326950043,1715640640760,-1375.0,0.000127,2]
[326950044,1715640640770,-2839.313475,0.00012704,2]
[326950045,1715640640780,-288.044754,0.00012704,2]
[326950046,1715640640789,-241.364455,0.00012704,2]
[326950047,1715640640799,-4161.020378,0.00012704,2]
[326950048,1715640640808,-910.686037,0.00012704,2]
[326950049,1715640640817,-482.72891,0.00012704,2]
[326950050,1715640640827,-93182.79495824,0.00012748,2]
[326950051,1715640640837,-1000.0,0.000128,2]
[326950052,1715640640846,-5707.9215,0.0001283,2]
[326950053,1715640640856,-2839.313475,0.00012859,2]
[326950054,1715640640865,-288.044754,0.00012859,2]
[326950055,1715640640875,-241.364455,0.00012859,2]
[326950056,1715640640884,-4161.020378,0.00012859,2]
[326950057,1715640640893,-910.686037,0.00012859,2]
[326950058,1715640640903,-482.72891,0.00012859,2]
[326950059,1715640640912,-2099.72945,0.0001287,2]
[326950060,1715640640923,-800.0,0.00012877,2]
[326950061,1715640640933,-191.16953814,0.00012894,2]
[326950062,1715640640943,-200.0,0.00012896,2]
[326950063,1715640640953,-1000.0,0.00012896,2]
[326950064,1715640640963,-947.07349922,0.00012898,2]
[326950065,1715640640972,-947.07349911,0.00012898,2]
[326950066,1715640640983,-947.07349911,0.00012898,2]
[326950067,1715640640992,-947.07349911,0.00012899,2]
[326950068,1715640641003,-947.07349911,0.00012899,2]
[326950069,1715640641014,-947.07349911,0.00012899,2]
[326950070,1715640641025,-500.0,0.00012899,2]
[326950071,1715640641034,-500.0,0.00012899,2]
[326950072,1715640641044,-500.0,0.00012899,2]
[326950073,1715640641054,-500.0,0.00012899,2]
[326950074,1715640641064,-500.0,0.00012899,2]
[326950075,1715640641075,-500.0,0.00012899,2]
[326950076,1715640641295,-500.0,0.00012899,2]
[326950077,1715640641306,-500.0,0.00012899,2]
[326950078,1715640641315,-500.0,0.00012899,2]
[326950079,1715640641325,-500.0,0.00012899,2]
[326950080,1715640641334,-527.84,0.00012899,2]
[326950081,1715640641344,-500.0,0.00012899,2]
[326950082,1715640641353,-500.0,0.00012899,2]
[326950083,1715640641363,-500.0,0.00012899,2]
[326950084,1715640641372,-500.0,0.00012899,2]
[326950085,1715640641381,-500.0,0.00012899,2]
[326950086,1715640641391,-500.0,0.00012899,2]
[326950087,1715640641401,-500.0,0.00012899,2]
[326950088,1715640641410,-500.0,0.00012899,2]
[326950089,1715640641420,-500.0,0.00012899,2]
[326950090,1715640641430,-500.0,0.00012899,2]
[326950091,1715640641439,-500.0,0.00012899,2]
[326950092,1715640641449,-500.0,0.00012899,2]
[326950093,1715640641458,-500.0,0.00012899,2]
[326950094,1715640641467,-521.51377064,0.00012899,2]
[326950095,1715640641477,-500.0,0.00012899,2]
[326950096,1715640641487,-500.0,0.00012899,2]
[326950097,1715640641497,-500.0,0.00012899,2]
[326950098,1715640641506,-500.0,0.00012899,2]
[326950099,1715640641516,-500.0,0.00012899,2]
[326950100,1715640641525,-500.0,0.00012899,2]
[326950101,1715640641535,-500.0,0.00012899,2]
[326950102,1715640641544,-2204.47,0.00012899,2]
[326950103,1715640641553,-500.0,0.00012899,2]
[326950104,1715640641563,-500.0,0.00012899,2]
[326950105,1715640641572,-500.0,0.00012899,2]
[326950106,1715640641581,-500.0,0.00012899,2]
[326950107,1715640641590,-500.0,0.00012899,2]
[326950108,1715640641599,-903.38,0.00012899,2]
[326950109,1715640641609,-500.0,0.00012899,2]
[326950110,1715640641620,-500.0,0.00012899,2]
[326950111,1715640641631,-500.0,0.00012899,2]
[326950112,1715640641640,-500.0,0.00012899,2]
[326950113,1715640641649,-500.0,0.00012899,2]